[Event "Late-Titled-Tuesday-Blitz-January-16-2024"]
[Site "Chess.com"]
[Date "2024.01.16"]
[Round "2"]
[White "Gyulamiryan-koryun"]
[Black "vladoboch"]
[Result "0-1"]
[WhiteElo "1662"]
[BlackElo "2425"]
[TimeControl "180+1"]
[EndTime "14:18:24 PST"]
[Termination "vladoboch won by resignation"]

1. e4 {[%clk 0:02:59.5]} 1... c5 {[%clk 0:02:57.4]} 2. Nf3 {[%clk 0:02:58.9]}
2... Nc6 {[%clk 0:02:57.6]} 3. d4 {[%clk 0:02:59.1]} 3... cxd4 {[%clk
0:02:58.4]} 4. Nxd4 {[%clk 0:02:59.2]} 4... e5 {[%clk 0:02:59.2]} 5. Nb5 {[%clk
0:02:59]} 5... d6 {[%clk 0:02:59.5]} 6. N1c3 {[%clk 0:02:58]} 6... Be7 {[%clk
0:02:59.3]} 7. Nd5 {[%clk 0:02:55.7]} 7... Kf8 {[%clk 0:02:54.2]} 8. Nxe7 {[%clk
0:02:52.2]} 8... Kxe7 {[%clk 0:02:53.7]} 9. Bc4 {[%clk 0:02:43.7]} 9... Nf6
{[%clk 0:02:53.4]} 10. Nc3 {[%clk 0:02:33.5]} 10... Be6 {[%clk 0:02:51.3]} 11.
Nd5+ {[%clk 0:02:25.9]} 11... Bxd5 {[%clk 0:02:51.6]} 12. Bxd5 {[%clk
0:02:20.5]} 12... Re8 {[%clk 0:02:47.2]} 13. O-O {[%clk 0:02:19.8]} 13... Kf8
{[%clk 0:02:47.3]} 14. f4 {[%clk 0:02:17.1]} 14... exf4 {[%clk 0:02:45.9]} 15.
Bxf4 {[%clk 0:02:16]} 15... Ne5 {[%clk 0:02:44.9]} 16. Kh1 {[%clk 0:02:03.7]}
16... Qb6 {[%clk 0:02:31.9]} 17. b3 {[%clk 0:02:00.6]} 17... Kg8 {[%clk
0:02:31.1]} 18. c4 {[%clk 0:02:00.3]} 18... Neg4 {[%clk 0:02:19.8]} 19. Bg3
{[%clk 0:01:53.1]} 19... Ne3 {[%clk 0:02:18.9]} 20. Bf2 {[%clk 0:01:44.6]} 20...
Nxd1 {[%clk 0:01:58.3]} 21. Bxb6 {[%clk 0:01:44.1]} 21... axb6 {[%clk
0:01:53.4]} 22. Raxd1 {[%clk 0:01:43]} 22... Rxa2 {[%clk 0:01:39.2]} 23. Bxb7
{[%clk 0:01:41.5]} 23... Re6 {[%clk 0:01:13.4]} 24. Bd5 {[%clk 0:01:35.6]} 24...
Re7 {[%clk 0:00:54.8]} 25. Kg1 {[%clk 0:01:31.2]} 25... h6 {[%clk 0:00:49.8]}
26. b4 {[%clk 0:01:27.4]} 26... Rb2 {[%clk 0:00:43.4]} 27. b5 {[%clk 0:01:19.5]}
27... Kf8 {[%clk 0:00:41.2]} 28. Ra1 {[%clk 0:01:16.7]} 28... Nxd5 {[%clk
0:00:33.3]} 29. exd5 {[%clk 0:01:11.3]} 29... g6 {[%clk 0:00:19.5]} 30. Ra8+
{[%clk 0:01:09.3]} 30... Kg7 {[%clk 0:00:20]} 31. Ra3 {[%clk 0:01:05.8]} 31...
Ree2 {[%clk 0:00:19.6]} 32. Rg3 {[%clk 0:01:04.8]} 32... Rbc2 {[%clk 0:00:20]}
33. h4 {[%clk 0:01:00.3]} 33... Rxc4 {[%clk 0:00:20.2]} 34. Rgf3 {[%clk
0:01:00.4]} 34... f5 {[%clk 0:00:20.2]} 35. g4 {[%clk 0:00:59.6]} 35... Rxg4+
{[%clk 0:00:20.3]} 36. Kh1 {[%clk 0:00:58.8]} 36... Rxh4+ {[%clk 0:00:20.9]} 37.
Kg1 {[%clk 0:00:58.7]} 37... Rhh2 {[%clk 0:00:19.6]} 38. Rg3 {[%clk 0:00:57.6]}
38... Kf6 {[%clk 0:00:15.9]} 39. Rf4 {[%clk 0:00:55.5]} 39... g5 {[%clk
0:00:13.2]} 40. Rf1 {[%clk 0:00:54.7]} 40... f4 {[%clk 0:00:11.3]} 41. Rg4
{[%clk 0:00:53.6]} 41... Kf5 {[%clk 0:00:11.2]} 42. Rg3 {[%clk 0:00:52.7]} 42...
Ke5 {[%clk 0:00:10.4]} 43. Rg4 {[%clk 0:00:52.5]} 43... Kf5 {[%clk 0:00:09.3]}
44. Rg3 {[%clk 0:00:52.5]} 44... h5 {[%clk 0:00:09]} 45. Rff3 {[%clk 0:00:42.2]}
45... Kg6 {[%clk 0:00:06.6]} 46. Rh3 {[%clk 0:00:39.4]} 46... Rhg2+ {[%clk
0:00:05.5]} 47. Kf1 {[%clk 0:00:39.4]} 47... g4 {[%clk 0:00:06]} 48. Rxf4 {[%clk
0:00:36.4]} 48... Ref2+ {[%clk 0:00:06.2]} 49. Rxf2 {[%clk 0:00:36.2]} 49...
Rxf2+ {[%clk 0:00:07.1]} 50. Kxf2 {[%clk 0:00:35.8]} 50... gxh3 {[%clk 0:00:08]}
51. Kg3 {[%clk 0:00:36.2]} 51... Kf5 {[%clk 0:00:08.6]} 52. Kxh3 {[%clk
0:00:36.5]} 52... Ke5 {[%clk 0:00:09.5]} 53. Kh4 {[%clk 0:00:36.9]} 53... Kxd5
{[%clk 0:00:10.4]} 54. Kxh5 {[%clk 0:00:37.8]} 54... Kc4 {[%clk 0:00:11]} 55.
Kg5 {[%clk 0:00:38.7]} 55... d5 {[%clk 0:00:11.7]} 56. Kf4 {[%clk 0:00:39.6]}
56... d4 {[%clk 0:00:12]} 57. Kf3 {[%clk 0:00:39.1]} 57... d3 {[%clk 0:00:11.8]}
58. Kf2 {[%clk 0:00:38.8]} 58... Kc3 {[%clk 0:00:12.1]} 59. Ke1 {[%clk
0:00:39.1]} 59... Kc2 {[%clk 0:00:12.6]} 60. Kf2 {[%clk 0:00:38.3]} 60... d2
{[%clk 0:00:13.5]} 61. Ke3 {[%clk 0:00:38.3]} 61... d1=Q {[%clk 0:00:14.4]} 62.
Ke4 {[%clk 0:00:38.7]} 62... Qb1 {[%clk 0:00:14.3]} 63. Ke5 {[%clk 0:00:39.6]}
63... Qxb5+ {[%clk 0:00:14.7]} 64. Kd6 {[%clk 0:00:40.5]} 64... Qc5+ {[%clk
0:00:15.3]} 65. Kd7 {[%clk 0:00:40]} 65... b5 {[%clk 0:00:15.7]} 0-1

[Event "Late-Titled-Tuesday-Blitz-January-16-2024"]
[Site "Chess.com"]
[Date "2024.01.16"]
[Round "2"]
[White "MusicCityMaster"]
[Black "cassoulet"]
[Result "0-1"]
[WhiteElo "2408"]
[BlackElo "2767"]
[TimeControl "180+1"]
[EndTime "14:18:26 PST"]
[Termination "cassoulet won on time"]

1. d4 {[%clk 0:03:00.9]} 1... Nf6 {[%clk 0:02:59.9]} 2. c4 {[%clk 0:03:01]} 2...
g6 {[%clk 0:03:00.5]} 3. Nc3 {[%clk 0:03:01.3]} 3... d5 {[%clk 0:03:01.1]} 4.
Bf4 {[%clk 0:02:59.6]} 4... Bg7 {[%clk 0:03:00.8]} 5. e3 {[%clk 0:02:59.5]} 5...
O-O {[%clk 0:03:00.8]} 6. Nf3 {[%clk 0:02:59.8]} 6... c6 {[%clk 0:03:01.3]} 7.
Rc1 {[%clk 0:02:58.6]} 7... Nbd7 {[%clk 0:03:01.6]} 8. cxd5 {[%clk 0:02:52.3]}
8... cxd5 {[%clk 0:03:00.3]} 9. Be2 {[%clk 0:02:50.5]} 9... Nb6 {[%clk
0:02:55.7]} 10. O-O {[%clk 0:02:48.6]} 10... Bf5 {[%clk 0:02:55.5]} 11. Nb5
{[%clk 0:02:39]} 11... Nc4 {[%clk 0:02:41.9]} 12. b3 {[%clk 0:02:28]} 12... Nd6
{[%clk 0:02:40.3]} 13. Nxd6 {[%clk 0:02:22.5]} 13... exd6 {[%clk 0:02:41.2]} 14.
h3 {[%clk 0:02:17.7]} 14... Ne4 {[%clk 0:02:40.9]} 15. Nd2 {[%clk 0:02:09.5]}
15... Qb6 {[%clk 0:02:31.1]} 16. f3 {[%clk 0:02:01.6]} 16... Nf6 {[%clk
0:02:23.7]} 17. Nb1 {[%clk 0:01:54.3]} 17... Rfe8 {[%clk 0:02:18.1]} 18. Nc3
{[%clk 0:01:49.5]} 18... h6 {[%clk 0:02:16.3]} 19. g4 {[%clk 0:01:41.2]} 19...
Bd7 {[%clk 0:02:15.9]} 20. Qd2 {[%clk 0:01:35.2]} 20... g5 {[%clk 0:02:15]} 21.
Bg3 {[%clk 0:01:34.9]} 21... Rad8 {[%clk 0:01:58.4]} 22. Kg2 {[%clk 0:01:34.1]}
22... Bc6 {[%clk 0:01:58.6]} 23. h4 {[%clk 0:01:30.4]} 23... Qa5 {[%clk
0:01:54.3]} 24. hxg5 {[%clk 0:01:29.3]} 24... hxg5 {[%clk 0:01:55.2]} 25. Rh1
{[%clk 0:01:28.6]} 25... Re6 {[%clk 0:01:53.6]} 26. Bd3 {[%clk 0:01:25.3]} 26...
Rde8 {[%clk 0:01:53]} 27. Bf2 {[%clk 0:01:23.9]} 27... a6 {[%clk 0:01:51.3]} 28.
Bb1 {[%clk 0:01:15.4]} 28... Kf8 {[%clk 0:01:47.9]} 29. Qd3 {[%clk 0:01:12.7]}
29... Qa3 {[%clk 0:01:32.3]} 30. Ne2 {[%clk 0:01:09.8]} 30... Bb5 {[%clk
0:01:31.5]} 31. Qd2 {[%clk 0:01:05.1]} 31... Bxe2 {[%clk 0:01:20.4]} 32. Qxe2
{[%clk 0:01:05.2]} 32... Qb4 {[%clk 0:01:17]} 33. Bf5 {[%clk 0:01:04.4]} 33...
R6e7 {[%clk 0:01:14.9]} 34. Qc2 {[%clk 0:00:56.3]} 34... Qb6 {[%clk 0:01:09.1]}
35. Rh3 {[%clk 0:00:54.2]} 35... Qb5 {[%clk 0:01:04.4]} 36. Rch1 {[%clk
0:00:51.2]} 36... Rxe3 {[%clk 0:01:01.8]} 37. Bxe3 {[%clk 0:00:49.7]} 37... Rxe3
{[%clk 0:01:02.7]} 38. Kf2 {[%clk 0:00:31.2]} 38... Re8 {[%clk 0:01:02.2]} 39.
Bd3 {[%clk 0:00:28.1]} 39... Qb4 {[%clk 0:01:00.6]} 40. Kg2 {[%clk 0:00:19.8]}
40... Qxd4 {[%clk 0:01:00.2]} 41. Rd1 {[%clk 0:00:14.7]} 41... Qe3 {[%clk
0:00:51.1]} 42. Rhh1 {[%clk 0:00:13]} 42... d4 {[%clk 0:00:45.9]} 43. Rhe1
{[%clk 0:00:13]} 43... Nd5 {[%clk 0:00:45.5]} 44. Be4 {[%clk 0:00:10.8]} 44...
Qc3 {[%clk 0:00:19.4]} 45. Qxc3 {[%clk 0:00:10.2]} 45... Nxc3 {[%clk 0:00:19.9]}
46. Rd3 {[%clk 0:00:09.8]} 46... d5 {[%clk 0:00:19.8]} 47. Rh1 {[%clk
0:00:05.5]} 47... dxe4 {[%clk 0:00:19.3]} 48. fxe4 {[%clk 0:00:06.4]} 48... Rxe4
{[%clk 0:00:19.5]} 49. Kg3 {[%clk 0:00:06.6]} 49... Rf4 {[%clk 0:00:16.2]} 50.
Re1 {[%clk 0:00:05.4]} 50... Ne4+ {[%clk 0:00:15.7]} 51. Kg2 {[%clk 0:00:05.4]}
51... Rxg4+ {[%clk 0:00:15.3]} 52. Kh3 {[%clk 0:00:06]} 52... Nf2+ {[%clk
0:00:14.7]} 53. Kh2 {[%clk 0:00:04.6]} 53... Nxd3 {[%clk 0:00:15.6]} 0-1

[Event "Late-Titled-Tuesday-Blitz-January-16-2024"]
[Site "Chess.com"]
[Date "2024.01.16"]
[Round "2"]
[White "agvega14"]
[Black "SergioMoralesG"]
[Result "0-1"]
[WhiteElo "2132"]
[BlackElo "2471"]
[TimeControl "180+1"]
[EndTime "14:18:27 PST"]
[Termination "SergioMoralesG won by checkmate"]

1. e4 {[%clk 0:03:00.9]} 1... c5 {[%clk 0:02:54.9]} 2. Nf3 {[%clk 0:02:59.8]}
2... e6 {[%clk 0:02:55.4]} 3. c3 {[%clk 0:02:59.4]} 3... Nf6 {[%clk 0:02:54.9]}
4. Bd3 {[%clk 0:02:48.9]} 4... d5 {[%clk 0:02:54.2]} 5. e5 {[%clk 0:02:46.6]}
5... c4 {[%clk 0:02:54.6]} 6. Bc2 {[%clk 0:02:46]} 6... Nfd7 {[%clk 0:02:54.2]}
7. O-O {[%clk 0:02:44.9]} 7... Nc6 {[%clk 0:02:54.1]} 8. Re1 {[%clk 0:02:44.3]}
8... Qc7 {[%clk 0:02:44.7]} 9. Qe2 {[%clk 0:02:42.1]} 9... h6 {[%clk 0:02:45.2]}
10. d4 {[%clk 0:02:38.9]} 10... cxd3 {[%clk 0:02:44.7]} 11. Bxd3 {[%clk
0:02:39]} 11... g5 {[%clk 0:02:45.2]} 12. Na3 {[%clk 0:02:28.5]} 12... a6 {[%clk
0:02:39]} 13. c4 {[%clk 0:02:02]} 13... g4 {[%clk 0:02:26.4]} 14. Nd2 {[%clk
0:01:56.3]} 14... Ndxe5 {[%clk 0:01:51.2]} 15. cxd5 {[%clk 0:01:54.5]} 15...
Nxd3 {[%clk 0:01:44.9]} 16. Qxd3 {[%clk 0:01:53.5]} 16... Nb4 {[%clk 0:01:42.8]}
17. Qb3 {[%clk 0:01:43.7]} 17... Be7 {[%clk 0:01:22]} 18. dxe6 {[%clk
0:01:33.2]} 18... Bxe6 {[%clk 0:01:21.9]} 19. Qe3 {[%clk 0:01:21.1]} 19... O-O-O
{[%clk 0:01:09.5]} 20. Ndc4 {[%clk 0:01:12.6]} 20... Kb8 {[%clk 0:01:05.6]} 21.
b3 {[%clk 0:01:00]} 21... Bf6 {[%clk 0:00:58.5]} 22. Bb2 {[%clk 0:00:53.7]}
22... Bxc4 {[%clk 0:00:36.5]} 23. Bxf6 {[%clk 0:00:48.2]} 23... Nd5 {[%clk
0:00:35.8]} 24. Be5 {[%clk 0:00:43.4]} 24... Nxe3 {[%clk 0:00:32.4]} 25. Bxc7+
{[%clk 0:00:43.4]} 25... Kxc7 {[%clk 0:00:33.3]} 26. Rxe3 {[%clk 0:00:42.5]}
26... Be6 {[%clk 0:00:30.7]} 27. Rc1+ {[%clk 0:00:41.9]} 27... Kb8 {[%clk
0:00:27.9]} 28. Rec3 {[%clk 0:00:39.9]} 28... Rd2 {[%clk 0:00:26.5]} 29. R3c2
{[%clk 0:00:36.9]} 29... Rhd8 {[%clk 0:00:27]} 30. Kf1 {[%clk 0:00:31.9]} 30...
Bf5 {[%clk 0:00:20.9]} 31. Rxd2 {[%clk 0:00:21.3]} 31... Rxd2 {[%clk 0:00:21.8]}
32. Nc4 {[%clk 0:00:19.2]} 32... Bd3+ {[%clk 0:00:21.1]} 33. Kg1 {[%clk
0:00:16.2]} 33... Bxc4 {[%clk 0:00:21.3]} 34. bxc4 {[%clk 0:00:15.3]} 34... Rxa2
{[%clk 0:00:21.9]} 35. h4 {[%clk 0:00:14.7]} 35... Kc7 {[%clk 0:00:20.8]} 36.
Re1 {[%clk 0:00:13.2]} 36... Kc6 {[%clk 0:00:20.4]} 37. Re7 {[%clk 0:00:12.6]}
37... a5 {[%clk 0:00:19.9]} 38. Rxf7 {[%clk 0:00:12.1]} 38... a4 {[%clk
0:00:19.8]} 39. Rf6+ {[%clk 0:00:12.4]} 39... Kc5 {[%clk 0:00:20.1]} 40. Rxh6
{[%clk 0:00:12.4]} 40... a3 {[%clk 0:00:20.4]} 41. Rh7 {[%clk 0:00:12]} 41...
Ra1+ {[%clk 0:00:16.5]} 42. Kh2 {[%clk 0:00:11.7]} 42... a2 {[%clk 0:00:17.3]}
43. Rxb7 {[%clk 0:00:11.2]} 43... Rh1+ {[%clk 0:00:17.2]} 44. Kxh1 {[%clk
0:00:11.6]} 44... a1=Q+ {[%clk 0:00:18.1]} 45. Kh2 {[%clk 0:00:12.4]} 45... Qe5+
{[%clk 0:00:16.8]} 46. g3 {[%clk 0:00:11.2]} 46... Qf6 {[%clk 0:00:10.3]} 47.
Rb5+ {[%clk 0:00:09.1]} 47... Kxc4 {[%clk 0:00:09.5]} 48. Rg5 {[%clk 0:00:06.8]}
48... Qxf2+ {[%clk 0:00:08.9]} 49. Kh1 {[%clk 0:00:07]} 49... Qxg3 {[%clk
0:00:08.7]} 50. h5 {[%clk 0:00:03.4]} 50... Qh3+ {[%clk 0:00:08.4]} 51. Kg1
{[%clk 0:00:03.3]} 51... g3 {[%clk 0:00:08.7]} 52. h6 {[%clk 0:00:02.9]} 52...
Qh2+ {[%clk 0:00:08.7]} 53. Kf1 {[%clk 0:00:03.5]} 53... Qf2# {[%clk 0:00:09.6]}
0-1

[Event "Late-Titled-Tuesday-Blitz-January-16-2024"]
[Site "Chess.com"]
[Date "2024.01.16"]
[Round "2"]
[White "ahkashefi2800"]
[Black "Kiborg95"]
[Result "0-1"]
[WhiteElo "2555"]
[BlackElo "2873"]
[TimeControl "180+1"]
[EndTime "14:18:28 PST"]
[Termination "Kiborg95 won by checkmate"]

1. d4 {[%clk 0:02:53.8]} 1... d6 {[%clk 0:02:59.3]} 2. e4 {[%clk 0:02:51.1]}
2... Nf6 {[%clk 0:02:59.4]} 3. Nc3 {[%clk 0:02:50.5]} 3... e5 {[%clk 0:03:00.1]}
4. dxe5 {[%clk 0:02:45]} 4... dxe5 {[%clk 0:03:01]} 5. Qxd8+ {[%clk 0:02:41.9]}
5... Kxd8 {[%clk 0:03:01.9]} 6. Bg5 {[%clk 0:02:35.3]} 6... c6 {[%clk
0:03:02.2]} 7. f3 {[%clk 0:02:15.2]} 7... Be6 {[%clk 0:02:59.8]} 8. O-O-O+
{[%clk 0:02:11.2]} 8... Nd7 {[%clk 0:02:58.4]} 9. h4 {[%clk 0:02:09]} 9... b5
{[%clk 0:02:55.4]} 10. Nh3 {[%clk 0:02:06.7]} 10... h6 {[%clk 0:02:51.8]} 11.
Be3 {[%clk 0:02:05.1]} 11... Kc7 {[%clk 0:02:51.9]} 12. Nf2 {[%clk 0:02:05]}
12... Bc5 {[%clk 0:02:46.6]} 13. Bxc5 {[%clk 0:02:03.6]} 13... Nxc5 {[%clk
0:02:47.5]} 14. g3 {[%clk 0:01:56.4]} 14... b4 {[%clk 0:02:30.6]} 15. Ne2 {[%clk
0:01:56.3]} 15... a5 {[%clk 0:02:25.6]} 16. Kb1 {[%clk 0:01:51.3]} 16... Rad8
{[%clk 0:02:21.9]} 17. Bh3 {[%clk 0:01:46.2]} 17... Bc4 {[%clk 0:02:15.7]} 18.
Nc1 {[%clk 0:01:43]} 18... Nh5 {[%clk 0:02:03.6]} 19. g4 {[%clk 0:00:26.6]}
19... Nf4 {[%clk 0:02:03.7]} 20. Bf1 {[%clk 0:00:26.2]} 20... Be6 {[%clk
0:02:00.4]} 21. Nfd3 {[%clk 0:00:21.2]} 21... Rd6 {[%clk 0:01:43.5]} 22. Rh2
{[%clk 0:00:14.2]} 22... Ncxd3 {[%clk 0:01:34.3]} 23. Nxd3 {[%clk 0:00:13.4]}
23... Nxd3 {[%clk 0:01:34.8]} 24. Rxd3 {[%clk 0:00:11.1]} 24... Rxd3 {[%clk
0:01:29.6]} 25. Bxd3 {[%clk 0:00:11.2]} 25... c5 {[%clk 0:01:27.8]} 26. b3
{[%clk 0:00:11.2]} 26... Rd8 {[%clk 0:01:24.9]} 27. Kc1 {[%clk 0:00:07.8]} 27...
a4 {[%clk 0:01:22.1]} 28. Rd2 {[%clk 0:00:04.8]} 28... Ra8 {[%clk 0:01:10.7]}
29. Bc4 {[%clk 0:00:04.3]} 29... axb3 {[%clk 0:01:07]} 30. axb3 {[%clk
0:00:03.6]} 30... Bxc4 {[%clk 0:00:20.4]} 31. bxc4 {[%clk 0:00:04.5]} 31... Ra3
{[%clk 0:00:21.1]} 32. Rd5 {[%clk 0:00:04.5]} 32... Kc6 {[%clk 0:00:20]} 33.
Rxe5 {[%clk 0:00:04.6]} 33... Rxf3 {[%clk 0:00:20.3]} 34. Rf5 {[%clk 0:00:04.9]}
34... Rxf5 {[%clk 0:00:19.1]} 35. exf5 {[%clk 0:00:04]} 35... Kd6 {[%clk
0:00:19.7]} 36. Kd2 {[%clk 0:00:02.6]} 36... Ke5 {[%clk 0:00:20.2]} 37. Ke3
{[%clk 0:00:03.1]} 37... h5 {[%clk 0:00:20.8]} 38. gxh5 {[%clk 0:00:01.6]} 38...
Kxf5 {[%clk 0:00:20.9]} 39. Kf3 {[%clk 0:00:02.2]} 39... f6 {[%clk 0:00:18.7]}
40. Kg3 {[%clk 0:00:01.7]} 40... Ke4 {[%clk 0:00:19.3]} 41. Kg4 {[%clk 0:00:02]}
41... f5+ {[%clk 0:00:19.9]} 42. Kg5 {[%clk 0:00:02.7]} 42... f4 {[%clk
0:00:20.8]} 43. Kg6 {[%clk 0:00:03.4]} 43... f3 {[%clk 0:00:21.6]} 44. Kxg7
{[%clk 0:00:04.1]} 44... f2 {[%clk 0:00:22.2]} 45. h6 {[%clk 0:00:05]} 45...
f1=Q {[%clk 0:00:22.7]} 46. h7 {[%clk 0:00:05.9]} 46... Qg1+ {[%clk 0:00:20.3]}
47. Kf7 {[%clk 0:00:05.8]} 47... Qf2+ {[%clk 0:00:20.2]} 48. Kg7 {[%clk
0:00:04.4]} 48... Qg3+ {[%clk 0:00:20.8]} 49. Kf7 {[%clk 0:00:01.7]} 49... Qxh4
{[%clk 0:00:21]} 50. Kg7 {[%clk 0:00:01.8]} 50... Qg5+ {[%clk 0:00:21.5]} 51.
Kf7 {[%clk 0:00:01.9]} 51... Qh6 {[%clk 0:00:21.8]} 52. Kg8 {[%clk 0:00:02.3]}
52... Qg6+ {[%clk 0:00:22.5]} 53. Kh8 {[%clk 0:00:01.7]} 53... Qf7 {[%clk
0:00:23.1]} 54. c3 {[%clk 0:00:01.2]} 54... Qf8# {[%clk 0:00:24]} 0-1

[Event "Late-Titled-Tuesday-Blitz-January-16-2024"]
[Site "Chess.com"]
[Date "2024.01.16"]
[Round "2"]
[White "Nf3c5"]
[Black "platy3"]
[Result "0-1"]
[WhiteElo "2558"]
[BlackElo "2893"]
[TimeControl "180+1"]
[EndTime "14:18:33 PST"]
[Termination "platy3 won on time"]

1. e4 {[%clk 0:02:52]} 1... c5 {[%clk 0:02:59.7]} 2. Nf3 {[%clk 0:02:51.9]} 2...
e6 {[%clk 0:03:00.5]} 3. d4 {[%clk 0:02:47.8]} 3... cxd4 {[%clk 0:03:01.4]} 4.
Nxd4 {[%clk 0:02:48.5]} 4... Nc6 {[%clk 0:03:01.9]} 5. Nc3 {[%clk 0:02:32.7]}
5... Qc7 {[%clk 0:03:02.1]} 6. Be3 {[%clk 0:02:32.5]} 6... a6 {[%clk 0:03:01.8]}
7. g4 {[%clk 0:02:32.3]} 7... h6 {[%clk 0:02:56.2]} 8. h4 {[%clk 0:02:26.4]}
8... Nf6 {[%clk 0:02:55.7]} 9. Rg1 {[%clk 0:02:22.2]} 9... Bb4 {[%clk
0:02:53.9]} 10. f3 {[%clk 0:01:47.5]} 10... Ne5 {[%clk 0:02:53]} 11. Qd2 {[%clk
0:01:41.9]} 11... d6 {[%clk 0:02:48.8]} 12. a3 {[%clk 0:01:37.8]} 12... Ba5
{[%clk 0:02:42.3]} 13. g5 {[%clk 0:01:27.5]} 13... hxg5 {[%clk 0:02:42]} 14.
hxg5 {[%clk 0:01:27.8]} 14... Nfd7 {[%clk 0:02:06.1]} 15. f4 {[%clk 0:01:26.5]}
15... Nc4 {[%clk 0:01:59.7]} 16. Bxc4 {[%clk 0:01:26.2]} 16... Qxc4 {[%clk
0:02:00.6]} 17. g6 {[%clk 0:01:17]} 17... Bxc3 {[%clk 0:01:54.4]} 18. gxf7+
{[%clk 0:01:14.5]} 18... Kxf7 {[%clk 0:01:55.3]} 19. bxc3 {[%clk 0:00:56.7]}
19... Nf6 {[%clk 0:01:54.1]} 20. O-O-O {[%clk 0:00:55.1]} 20... Bd7 {[%clk
0:00:45.6]} 21. Qg2 {[%clk 0:00:50.8]} 21... Rag8 {[%clk 0:00:43.5]} 22. f5
{[%clk 0:00:31.9]} 22... e5 {[%clk 0:00:36.5]} 23. Ne6 {[%clk 0:00:32.1]} 23...
Bxe6 {[%clk 0:00:34]} 24. fxe6+ {[%clk 0:00:32.5]} 24... Kxe6 {[%clk 0:00:34.1]}
25. Rd3 {[%clk 0:00:25.9]} 25... Qxe4 {[%clk 0:00:31.2]} 26. Qd2 {[%clk
0:00:25.6]} 26... Qc6 {[%clk 0:00:30]} 27. Rd1 {[%clk 0:00:25]} 27... Rd8 {[%clk
0:00:29.8]} 28. Bg5 {[%clk 0:00:23.6]} 28... Rh1 {[%clk 0:00:19.3]} 29. Bxf6
{[%clk 0:00:21.6]} 29... gxf6 {[%clk 0:00:20]} 30. Qe2 {[%clk 0:00:18.1]} 30...
Rxd1+ {[%clk 0:00:19.3]} 31. Qxd1 {[%clk 0:00:19]} 31... Kd7 {[%clk 0:00:18.1]}
32. Qg4+ {[%clk 0:00:19]} 32... Kc7 {[%clk 0:00:17.4]} 33. Qe6 {[%clk
0:00:19.6]} 33... d5 {[%clk 0:00:16.7]} 34. Qe7+ {[%clk 0:00:19.2]} 34... Rd7
{[%clk 0:00:17.1]} 35. Qf8 {[%clk 0:00:18.1]} 35... Qd6 {[%clk 0:00:17.1]} 36.
Qg8 {[%clk 0:00:17.4]} 36... Qxa3+ {[%clk 0:00:17]} 37. Kd2 {[%clk 0:00:17.9]}
37... Qc5 {[%clk 0:00:17.7]} 38. Rf3 {[%clk 0:00:16.8]} 38... d4 {[%clk
0:00:14.3]} 39. c4 {[%clk 0:00:16.7]} 39... Qc6 {[%clk 0:00:11.9]} 40. Qg4
{[%clk 0:00:14.7]} 40... Rh7 {[%clk 0:00:07.3]} 41. Rf2 {[%clk 0:00:07.7]} 41...
Re7 {[%clk 0:00:04.9]} 42. Qf5 {[%clk 0:00:04.2]} 42... Re6 {[%clk 0:00:05.2]}
43. Qh7+ {[%clk 0:00:04.2]} 43... Kb6 {[%clk 0:00:05.6]} 44. Qd3 {[%clk
0:00:05.1]} 44... Ka7 {[%clk 0:00:04.6]} 45. Qb3 {[%clk 0:00:05.3]} 45... e4
{[%clk 0:00:04.4]} 46. Re2 {[%clk 0:00:05.8]} 46... e3+ {[%clk 0:00:04.8]} 47.
Kc1 {[%clk 0:00:06]} 47... Qc5 {[%clk 0:00:05.5]} 48. Qd3 {[%clk 0:00:06.1]}
48... Rc6 {[%clk 0:00:05.3]} 49. Qb3 {[%clk 0:00:06.1]} 49... Qxc4 {[%clk
0:00:05.7]} 50. Kb2 {[%clk 0:00:06.8]} 50... Qxe2 {[%clk 0:00:05.7]} 0-1